[Event "CCT Chessable Masters Play-In 2025"]
[Site "Online"]
[Date "2025.02.17"]
[Round "4.13"]
[White "Pichot, Alan"]
[Black "Yakubboev, Nodirbek"]
[Result "1/2-1/2"]
[ECO "C55"]
[WhiteElo "2613"]
[BlackElo "2659"]
[PlyCount "111"]
[EventDate "2025.02.13"]
[EventType "swiss"]
[EventCountry "NET"]
[TimeControl "600"]
[WhiteClock "0:00:57"]
[BlackClock "0:00:56"]

1. e4 {[%emt 0:00:01]} e5 {[%emt 0:00:04]} 2. Nf3 {[%emt 0:00:01]} Nc6 {[%emt 0:00:01]} 3. Bc4 {[%emt 0:00:03]} Nf6 {[%emt 0:00:02]} 4. d3 {[%emt 0:00:02]} Be7 {[%emt 0:00:02]} 5. O-O {[%emt 0:00:02]} O-O {[%emt 0:00:01]} 6. Nc3 {[%emt 0:00:02]} d6 {[%emt 0:00:01]} 7. a4 {[%emt 0:00:03]} Bg4 {[%emt 0:00:08]} 8. h3 {[%emt 0:00:05]} Bxf3 {[%emt 0:00:02]} 9. Qxf3 {[%emt 0:00:00]} Nd4 {[%emt 0:00:00]} 10. Qd1 {[%emt 0:00:01]} c6 {[%emt 0:00:06]} 11. Ba2 {[%emt 0:00:01]} Ne6 {[%emt 0:00:01]} 12. Be3 {[%emt 0:00:06]} d5 {[%emt 0:01:01]} 13. exd5 {[%emt 0:00:02]} cxd5 {[%emt 0:00:27]} 14. d4 {[%emt 0:00:01]} e4 {[%emt 0:00:01]} 15. f3 {[%emt 0:00:06]} Bb4 {[%emt 0:00:04]} 16. Ne2 {[%emt 0:01:12]} Qd7 {[%emt 0:01:03]} 17. c3 {[%emt 0:00:03]} Be7 {[%emt 0:00:25]} 18. Ng3 {[%emt 0:00:02]} Bd6 {[%emt 0:00:06]} 19. Nf5 {[%emt 0:00:06]} g6 {[%emt 0:01:00]} 20. fxe4 {[%emt 0:01:41]} Nxe4 {[%emt 0:00:36]} 21. Nh6+ {[%emt 0:00:01]} Kg7 {[%emt 0:00:04]} 22. Bxd5 {[%emt 0:00:02]} Ng3 {[%emt 0:00:14]} 23. Ng4 {[%emt 0:00:28]} Nxf1 {[%emt 0:00:32]} 24. Bh6+ {[%emt 0:00:13]} Kh8 {[%emt 0:00:01]} 25. Bxf8 {[%emt 0:00:17]} Rxf8 {[%emt 0:00:11]} 26. Qxf1 {[%emt 0:00:02]} f5 {[%emt 0:00:06]} 27. Nf2 {[%emt 0:00:57]} Ng5 {[%emt 0:00:20]} 28. Qb5 {[%emt 0:00:06]} Qe7 {[%emt 0:00:01]} 29. Qd3 {[%emt 0:00:24]} Bb8 {[%emt 0:00:02]} 30. c4 {[%emt 0:00:16]} Qd6 {[%emt 0:00:07]} 31. Re1 {[%emt 0:00:03]} Qh2+ {[%emt 0:00:06]} 32. Kf1 {[%emt 0:00:02]} Ne4 {[%emt 0:00:14]} 33. Rxe4 {[%emt 0:00:57]} fxe4 {[%emt 0:00:02]} 34. Bxe4 {[%emt 0:00:00]} Qf4 {[%emt 0:00:08]} 35. Bf3 {[%emt 0:00:03]} Qc1+ {[%emt 0:00:02]} 36. Nd1 {[%emt 0:00:03]} Bg3 {[%emt 0:00:05]} 37. d5 {[%emt 0:00:06]} Re8 {[%emt 0:00:13]} 38. Be2 {[%emt 0:00:01]} Qf4+ {[%emt 0:00:02]} 39. Qf3 {[%emt 0:00:03]} Qd6 {[%emt 0:00:06]} 40. c5 {[%emt 0:00:09]} Qb8 {[%emt 0:00:04]} 41. Qc3+ {[%emt 0:00:10]} Be5 {[%emt 0:00:02]} 42. Qc4 {[%emt 0:00:02]} Rf8+ {[%emt 0:00:08]} 43. Bf3 {[%emt 0:00:01]} b6 {[%emt 0:00:04]} 44. b4 {[%emt 0:00:12]} Rf4 {[%emt 0:00:02]} 45. Qe2 {[%emt 0:00:04]} Rxb4 {[%emt 0:00:09]} 46. d6 {[%emt 0:00:01]} Bxd6 {[%emt 0:00:05]} 47. cxd6 {[%emt 0:00:02]} Qxd6 {[%emt 0:00:00]} 48. Qe3 {[%emt 0:00:11]} h5 {[%emt 0:00:27]} 49. Qc3+ {[%emt 0:00:03]} Qd4 {[%emt 0:00:03]} 50. Qc8+ {[%emt 0:00:04]} Kg7 {[%emt 0:00:01]} 51. Qc7+ {[%emt 0:00:01]} Kh6 {[%emt 0:00:01]} 52. Qc1+ {[%emt 0:00:02]} Kg7 {[%emt 0:00:05]} 53. Qc7+ {[%emt 0:00:01]} Kh6 {[%emt 0:00:01]} 54. Qc1+ {[%emt 0:00:12]} Qf4 {[%emt 0:00:01]} 55. Qc3 {[%emt 0:00:02]} Qd4 {[%emt 0:00:04]} 56. Qc1+ {[%emt 0:00:02]} 1/2-1/2

[Event "CCT Chessable Masters Play-In 2025"]
[Site "Online"]
[Date "2025.02.17"]
[Round "4.14"]
[White "Muradli, Mahammad"]
[Black "Narayanan S L"]
[Result "1/2-1/2"]
[ECO "A55"]
[WhiteElo "2588"]
[BlackElo "2622"]
[PlyCount "116"]
[EventDate "2025.02.13"]
[EventType "swiss"]
[EventCountry "NET"]
[TimeControl "600"]
[WhiteClock "0:01:05"]
[BlackClock "0:04:27"]

1. Nf3 {[%emt 0:00:39]} Nf6 {[%emt 0:00:02]} 2. c4 {[%emt 0:00:05]} d6 {[%emt 0:00:03]} 3. d4 {[%emt 0:00:01]} Nbd7 {[%emt 0:00:01]} 4. Nc3 {[%emt 0:00:01]} e5 {[%emt 0:00:01]} 5. e4 {[%emt 0:00:00]} Be7 {[%emt 0:00:01]} 6. Be2 {[%emt 0:00:01]} O-O {[%emt 0:00:00]} 7. O-O {[%emt 0:00:00]} Re8 {[%emt 0:00:01]} 8. Re1 {[%emt 0:00:11]} Bf8 {[%emt 0:00:01]} 9. d5 {[%emt 0:00:02]} Nc5 {[%emt 0:00:02]} 10. Bf1 {[%emt 0:00:07]} a5 {[%emt 0:00:02]} 11. b3 {[%emt 0:00:15]} Bg4 {[%emt 0:00:08]} 12. Rb1 {[%emt 0:00:27]} Bh5 {[%emt 0:00:06]} 13. g3 {[%emt 0:00:12]} c6 {[%emt 0:00:04]} 14. Bg5 {[%emt 0:00:58]} h6 {[%emt 0:00:03]} 15. Bxf6 {[%emt 0:00:01]} Qxf6 {[%emt 0:00:00]} 16. Bg2 {[%emt 0:00:07]} g5 {[%emt 0:00:20]} 17. Re3 {[%emt 0:00:07]} Bg6 {[%emt 0:00:07]} 18. Ne1 {[%emt 0:00:09]} h5 {[%emt 0:00:09]} 19. Nd3 {[%emt 0:00:06]} Nxd3 {[%emt 0:00:05]} 20. Rxd3 {[%emt 0:00:00]} g4 {[%emt 0:00:08]} 21. h3 {[%emt 0:00:28]} Qg5 {[%emt 0:00:07]} 22. Qd2 {[%emt 0:00:15]} Qxd2 {[%emt 0:00:04]} 23. Rxd2 {[%emt 0:00:01]} c5 {[%emt 0:00:01]} 24. hxg4 {[%emt 0:00:33]} hxg4 {[%emt 0:00:01]} 25. Bf1 {[%emt 0:00:01]} Bh6 {[%emt 0:00:15]} 26. Rdd1 {[%emt 0:00:00]} Kg7 {[%emt 0:00:11]} 27. Be2 {[%emt 0:00:13]} f5 {[%emt 0:00:01]} 28. exf5 {[%emt 0:00:19]} Bxf5 {[%emt 0:00:02]} 29. Bd3 {[%emt 0:00:00]} e4 {[%emt 0:00:08]} 30. Bc2 {[%emt 0:00:03]} Kf6 {[%emt 0:00:01]} 31. Re1 {[%emt 0:00:08]} e3 {[%emt 0:00:07]} 32. Bxf5 {[%emt 0:00:02]} Kxf5 {[%emt 0:00:01]} 33. Nb5 {[%emt 0:00:01]} Rad8 {[%emt 0:00:02]} 34. Nc7 {[%emt 0:00:04]} Re5 {[%emt 0:00:02]} 35. Ne6 {[%emt 0:00:03]} Ra8 {[%emt 0:00:17]} 36. fxe3 {[%emt 0:00:22]} Bxe3+ {[%emt 0:00:01]} 37. Kg2 {[%emt 0:00:02]} Ke4 {[%emt 0:00:11]} 38. Rbd1 {[%emt 0:00:34]} b6 {[%emt 0:00:10]} 39. Nf4 {[%emt 0:00:20]} Kf5 {[%emt 0:00:16]} 40. Ne6 {[%emt 0:00:00]} a4 {[%emt 0:00:10]} 41. Re2 {[%emt 0:00:08]} axb3 {[%emt 0:00:03]} 42. axb3 {[%emt 0:00:01]} Ra3 {[%emt 0:00:20]} 43. Rd3 {[%emt 0:00:12]} Bh6 {[%emt 0:00:02]} 44. Rf2+ {[%emt 0:00:12]} Kg6 {[%emt 0:00:01]} 45. Rd1 {[%emt 0:00:06]} Rxb3 {[%emt 0:00:06]} 46. Rdf1 {[%emt 0:00:02]} Rf3 {[%emt 0:00:16]} 47. Rxf3 {[%emt 0:00:03]} gxf3+ {[%emt 0:00:00]} 48. Rxf3 {[%emt 0:00:00]} Re4 {[%emt 0:00:01]} 49. Rb3 {[%emt 0:00:06]} Kf5 {[%emt 0:00:07]} 50. Rxb6 {[%emt 0:00:01]} Ke5 {[%emt 0:00:03]} 51. Nd8 {[%emt 0:00:11]} Bf8 {[%emt 0:00:09]} 52. Nf7+ {[%emt 0:00:20]} Kd4 {[%emt 0:00:01]} 53. Nxd6 {[%emt 0:00:05]} Bxd6 {[%emt 0:00:31]} 54. Rxd6 {[%emt 0:00:00]} Kxc4 {[%emt 0:00:00]} 55. Rd8 {[%emt 0:00:01]} Kd4 {[%emt 0:00:03]} 56. d6 {[%emt 0:00:02]} Kd5 {[%emt 0:00:01]} 57. d7 {[%emt 0:00:01]} Re7 {[%emt 0:00:03]} 58. g4 {[%emt 0:00:26]} Ke6 {[%emt 0:00:14]} 1/2-1/2

[Event "CCT Chessable Masters Play-In 2025"]
[Site "Online"]
[Date "2025.02.17"]
[Round "4.15"]
[White "Lobanov, Sergei"]
[Black "Aronian, Levon"]
[Result "1/2-1/2"]
[ECO "E47"]
[WhiteElo "2508"]
[BlackElo "2745"]
[PlyCount "51"]
[EventDate "2025.02.13"]
[EventType "swiss"]
[EventCountry "NET"]
[TimeControl "600"]
[WhiteClock "0:05:16"]
[BlackClock "0:04:41"]

1. d4 {[%emt 0:00:01]} Nf6 {[%emt 0:00:19]} 2. c4 {[%emt 0:00:02]} e6 {[%emt 0:00:01]} 3. Nc3 {[%emt 0:00:00]} Bb4 {[%emt 0:00:03]} 4. e3 {[%emt 0:00:01]} O-O {[%emt 0:00:02]} 5. Bd3 {[%emt 0:00:01]} c5 {[%emt 0:00:10]} 6. Nge2 {[%emt 0:00:02]} Nc6 {[%emt 0:00:02]} 7. O-O {[%emt 0:00:10]} d5 {[%emt 0:00:02]} 8. a3 {[%emt 0:00:16]} cxd4 {[%emt 0:00:11]} 9. axb4 {[%emt 0:00:43]} dxc3 {[%emt 0:00:03]} 10. bxc3 {[%emt 0:00:02]} dxc4 {[%emt 0:00:19]} 11. Bxc4 {[%emt 0:00:01]} Qc7 {[%emt 0:00:01]} 12. Bb3 {[%emt 0:00:18]} Rd8 {[%emt 0:00:22]} 13. Qc2 {[%emt 0:00:01]} b6 {[%emt 0:00:06]} 14. e4 {[%emt 0:01:38]} Qe5 {[%emt 0:02:03]} 15. Ng3 {[%emt 0:00:02]} Nxb4 {[%emt 0:00:59]} 16. cxb4 {[%emt 0:00:02]} Qxa1 {[%emt 0:00:01]} 17. Bb2 {[%emt 0:00:01]} Qa6 {[%emt 0:00:01]} 18. Bxf6 {[%emt 0:00:01]} gxf6 {[%emt 0:00:01]} 19. Qc3 {[%emt 0:00:01]} Qd3 {[%emt 0:00:22]} 20. Qxf6 {[%emt 0:00:01]} Ba6 {[%emt 0:00:03]} 21. Bxe6 {[%emt 0:01:12]} fxe6 {[%emt 0:00:04]} 22. Qxe6+ {[%emt 0:00:01]} Kf8 {[%emt 0:00:02]} 23. Qf6+ {[%emt 0:00:01]} Kg8 {[%emt 0:00:00]} 24. Qe6+ {[%emt 0:00:03]} Kf8 {[%emt 0:00:01]} 25. Qf6+ {[%emt 0:00:02]} Kg8 {[%emt 0:00:01]} 26. Qe6+ {[%emt 0:00:01]} 1/2-1/2

[Event "CCT Chessable Masters Play-In 2025"]
[Site "Online"]
[Date "2025.02.17"]
[Round "4.16"]
[White "Artemiev, Vladislav"]
[Black "Suyarov, Mukhammadzokhid"]
[Result "1-0"]
[ECO "A13"]
[WhiteElo "2691"]
[BlackElo "2465"]
[PlyCount "85"]
[EventDate "2025.02.13"]
[EventType "swiss"]
[EventCountry "NET"]
[TimeControl "600"]
[WhiteClock "0:02:46"]
[BlackClock "0:00:16"]

1. Nf3 {[%emt 0:00:02]} Nf6 {[%emt 0:00:07]} 2. c4 {[%emt 0:00:03]} e6 {[%emt 0:00:02]} 3. b3 {[%emt 0:00:01]} d5 {[%emt 0:00:03]} 4. Bb2 {[%emt 0:00:01]} b6 {[%emt 0:00:05]} 5. cxd5 {[%emt 0:00:05]} exd5 {[%emt 0:00:01]} 6. g3 {[%emt 0:00:02]} Bb7 {[%emt 0:00:06]} 7. Bg2 {[%emt 0:00:00]} Bd6 {[%emt 0:00:03]} 8. O-O {[%emt 0:00:02]} O-O {[%emt 0:00:01]} 9. Nc3 {[%emt 0:00:02]} a6 {[%emt 0:00:02]} 10. Rc1 {[%emt 0:00:06]} Re8 {[%emt 0:00:03]} 11. e3 {[%emt 0:00:01]} Nc6 {[%emt 0:00:29]} 12. a3 {[%emt 0:00:28]} Ne5 {[%emt 0:00:17]} 13. Nxe5 {[%emt 0:00:24]} Bxe5 {[%emt 0:00:00]} 14. Qc2 {[%emt 0:00:01]} Qd7 {[%emt 0:00:25]} 15. Ne2 {[%emt 0:00:05]} Bxb2 {[%emt 0:00:32]} 16. Qxb2 {[%emt 0:00:02]} a5 {[%emt 0:00:16]} 17. Nf4 {[%emt 0:00:24]} a4 {[%emt 0:01:02]} 18. b4 {[%emt 0:00:03]} Ba6 {[%emt 0:00:33]} 19. Rfe1 {[%emt 0:00:06]} Rad8 {[%emt 0:00:25]} 20. h4 {[%emt 0:01:01]} Bb5 {[%emt 0:00:30]} 21. Qc2 {[%emt 0:00:49]} Re7 {[%emt 0:00:18]} 22. Ne2 {[%emt 0:00:01]} Bxe2 {[%emt 0:01:54]} 23. Rxe2 {[%emt 0:00:01]} d4 {[%emt 0:00:09]} 24. Ree1 {[%emt 0:00:01]} h6 {[%emt 0:00:19]} 25. Qc6 {[%emt 0:01:16]} dxe3 {[%emt 0:00:32]} 26. dxe3 {[%emt 0:00:03]} Qxc6 {[%emt 0:00:02]} 27. Bxc6 {[%emt 0:00:15]} g6 {[%emt 0:00:15]} 28. Red1 {[%emt 0:00:05]} Rxd1+ {[%emt 0:00:20]} 29. Rxd1 {[%emt 0:00:01]} Kg7 {[%emt 0:00:00]} 30. Rc1 {[%emt 0:00:23]} Ne8 {[%emt 0:00:07]} 31. Bxa4 {[%emt 0:00:04]} Nd6 {[%emt 0:00:02]} 32. Bc6 {[%emt 0:00:03]} Re5 {[%emt 0:00:12]} 33. a4 {[%emt 0:00:02]} Kf6 {[%emt 0:00:03]} 34. Kf1 {[%emt 0:00:22]} Ke7 {[%emt 0:00:01]} 35. Ke2 {[%emt 0:00:09]} Kd8 {[%emt 0:00:01]} 36. Kd3 {[%emt 0:00:04]} Kc8 {[%emt 0:00:04]} 37. e4 {[%emt 0:00:04]} f5 {[%emt 0:00:04]} 38. Kd4 {[%emt 0:00:02]} Re7 {[%emt 0:00:05]} 39. e5 {[%emt 0:00:01]} Nf7 {[%emt 0:00:03]} 40. f4 {[%emt 0:00:00]} Nd8 {[%emt 0:00:00]} 41. a5 {[%emt 0:00:21]} bxa5 {[%emt 0:00:08]} 42. bxa5 {[%emt 0:00:01]} Re6 {[%emt 0:00:03]} 43. Kd5 {[%emt 0:00:07]} 1-0

[Event "CCT Chessable Masters Play-In 2025"]
[Site "Online"]
[Date "2025.02.17"]
[Round "4.17"]
[White "Yu, Yangyi"]
[Black "Shimanov, Aleksandr"]
[Result "1-0"]
[ECO "C11"]
[WhiteElo "2715"]
[BlackElo "2593"]
[PlyCount "235"]
[EventDate "2025.02.13"]
[EventType "swiss"]
[EventCountry "NET"]
[TimeControl "600"]
[BlackClock "0:00:03"]

1. e4 {[%emt 0:00:12]} e6 {[%emt 0:00:17]} 2. d4 {[%emt 0:00:08]} d5 {[%emt 0:00:05]} 3. Nc3 {[%emt 0:00:00]} Nf6 {[%emt 0:00:03]} 4. e5 {[%emt 0:00:04]} Nfd7 {[%emt 0:00:01]} 5. Nf3 {[%emt 0:00:14]} c5 {[%emt 0:00:04]} 6. dxc5 {[%emt 0:00:01]} Nc6 {[%emt 0:00:02]} 7. Bf4 {[%emt 0:00:01]} Bxc5 {[%emt 0:00:00]} 8. Bb5 {[%emt 0:00:07]} a6 {[%emt 0:00:19]} 9. Bxc6 {[%emt 0:00:09]} bxc6 {[%emt 0:00:00]} 10. O-O {[%emt 0:00:00]} O-O {[%emt 0:00:08]} 11. Qd2 {[%emt 0:00:18]} Be7 {[%emt 0:00:14]} 12. Ne2 {[%emt 0:00:26]} c5 {[%emt 0:00:12]} 13. Ng3 {[%emt 0:00:03]} Bb7 {[%emt 0:00:01]} 14. Rfe1 {[%emt 0:00:06]} a5 {[%emt 0:00:17]} 15. Rad1 {[%emt 0:00:22]} a4 {[%emt 0:00:06]} 16. c3 {[%emt 0:00:12]} Rb8 {[%emt 0:00:09]} 17. Nh5 {[%emt 0:00:03]} Bc6 {[%emt 0:00:22]} 18. Bh6 {[%emt 0:00:10]} g6 {[%emt 0:00:15]} 19. Bxf8 {[%emt 0:00:03]} Bxf8 {[%emt 0:00:03]} 20. Nf4 {[%emt 0:00:39]} Qc7 {[%emt 0:00:38]} 21. h4 {[%emt 0:00:09]} Bg7 {[%emt 0:00:12]} 22. Qe2 {[%emt 0:00:22]} Bb5 {[%emt 0:00:07]} 23. Qe3 {[%emt 0:00:01]} Bc4 {[%emt 0:00:05]} 24. b3 {[%emt 0:00:46]} axb3 {[%emt 0:00:11]} 25. axb3 {[%emt 0:00:00]} Bxb3 {[%emt 0:00:19]} 26. Rb1 {[%emt 0:00:05]} Bc2 {[%emt 0:00:34]} 27. Rxb8+ {[%emt 0:00:06]} Qxb8 {[%emt 0:00:57]} 28. Nxd5 {[%emt 0:00:09]} exd5 {[%emt 0:00:01]} 29. e6 {[%emt 0:00:00]} Nf8 {[%emt 0:00:02]} 30. exf7+ {[%emt 0:01:08]} Kxf7 {[%emt 0:00:01]} 31. Qxc5 {[%emt 0:00:02]} Qd8 {[%emt 0:00:09]} 32. Ng5+ {[%emt 0:00:28]} Kg8 {[%emt 0:00:01]} 33. Qa7 {[%emt 0:00:11]} Qd7 {[%emt 0:00:05]} 34. Qc5 {[%emt 0:00:06]} Bf6 {[%emt 0:00:10]} 35. Re2 {[%emt 0:00:21]} Bb3 {[%emt 0:00:12]} 36. Rb2 {[%emt 0:00:03]} Bc4 {[%emt 0:00:08]} 37. Rb8 {[%emt 0:00:42]} Qe7 {[%emt 0:00:02]} 38. Qxe7 {[%emt 0:00:04]} Bxe7 {[%emt 0:00:00]} 39. g3 {[%emt 0:00:06]} h6 {[%emt 0:00:03]} 40. Ne6 {[%emt 0:00:03]} Kf7 {[%emt 0:00:01]} 41. Nd4 {[%emt 0:00:02]} Ne6 {[%emt 0:00:03]} 42. Nc6 {[%emt 0:00:06]} Bf6 {[%emt 0:00:02]} 43. Rb7+ {[%emt 0:00:01]} Kf8 {[%emt 0:00:03]} 44. Rb8+ {[%emt 0:00:05]} Kf7 {[%emt 0:00:01]} 45. Rb7+ {[%emt 0:00:00]} Ke8 {[%emt 0:00:00]} 46. f4 {[%emt 0:00:12]} Nc5 {[%emt 0:00:03]} 47. Rh7 {[%emt 0:00:09]} Bxc3 {[%emt 0:00:16]} 48. Rxh6 {[%emt 0:00:02]} d4 {[%emt 0:00:01]} 49. Rh8+ {[%emt 0:00:07]} Kf7 {[%emt 0:00:08]} 50. Ne5+ {[%emt 0:00:01]} Kg7 {[%emt 0:00:00]} 51. Rc8 {[%emt 0:00:05]} Be2 {[%emt 0:01:13]} 52. Rxc5 {[%emt 0:00:04]} Be1 {[%emt 0:00:01]} 53. Rc6 {[%emt 0:00:11]} d3 {[%emt 0:00:06]} 54. Rxg6+ {[%emt 0:00:05]} Kh7 {[%emt 0:00:00]} 55. Nxd3 {[%emt 0:00:10]} Bxd3 {[%emt 0:00:03]} 56. Rd6 {[%emt 0:00:01]} Bf5 {[%emt 0:00:09]} 57. Kg2 {[%emt 0:00:01]} Bg4 {[%emt 0:00:01]} 58. Rd5 {[%emt 0:00:02]} Bc3 {[%emt 0:00:01]} 59. Rg5 {[%emt 0:00:00]} Be6 {[%emt 0:00:01]} 60. g4 {[%emt 0:00:02]} Bf6 {[%emt 0:00:03]} 61. Rh5+ {[%emt 0:00:01]} Kg7 {[%emt 0:00:01]} 62. Kg3 {[%emt 0:00:00]} Bc3 {[%emt 0:00:01]} 63. Rc5 {[%emt 0:00:02]} Be1+ {[%emt 0:00:01]} 64. Kh3 {[%emt 0:00:00]} Bf2 {[%emt 0:00:06]} 65. Rc7+ {[%emt 0:00:02]} Kf6 {[%emt 0:00:02]} 66. f5 {[%emt 0:00:01]} Bd5 {[%emt 0:00:01]} 67. Rd7 {[%emt 0:00:01]} Be4 {[%emt 0:00:00]} 68. Rd6+ {[%emt 0:00:00]} Kf7 {[%emt 0:00:05]} 69. Re6 {[%emt 0:00:01]} Bd5 {[%emt 0:00:01]} 70. Re5 {[%emt 0:00:01]} Bc4 {[%emt 0:00:02]} 71. g5 {[%emt 0:00:01]} Bb3 {[%emt 0:00:06]} 72. h5 {[%emt 0:00:01]} Bd4 {[%emt 0:00:03]} 73. Rb5 {[%emt 0:00:01]} Bc2 {[%emt 0:00:02]} 74. h6 {[%emt 0:00:01]} Bd1 {[%emt 0:00:02]} 75. Kg3 {[%emt 0:00:01]} Bc3 {[%emt 0:00:02]} 76. Rc5 {[%emt 0:00:01]} Be1+ {[%emt 0:00:03]} 77. Kg2 {[%emt 0:00:00]} Bd2 {[%emt 0:00:01]} 78. Rd5 {[%emt 0:00:01]} Bxg5 {[%emt 0:00:01]} 79. h7 {[%emt 0:00:01]} Bf6 {[%emt 0:00:02]} 80. Rxd1 {[%emt 0:00:01]} Kg7 {[%emt 0:00:00]} 81. Rd7+ {[%emt 0:00:00]} Kh6 {[%emt 0:00:01]} 82. Kf3 {[%emt 0:00:00]} Kg5 {[%emt 0:00:01]} 83. Ke4 {[%emt 0:00:00]} Bh8 {[%emt 0:00:00]} 84. Rf7 {[%emt 0:00:01]} Kh6 {[%emt 0:00:01]} 85. Rf8 {[%emt 0:00:00]} Kg7 {[%emt 0:00:02]} 86. Rxh8 {[%emt 0:00:01]} Kxh8 {[%emt 0:00:01]} 87. Ke5 {[%emt 0:00:00]} Kg7 {[%emt 0:00:00]} 88. Ke6 {[%emt 0:00:00]} Kxh7 {[%emt 0:00:01]} 89. Ke7 {[%emt 0:00:00]} Kh6 {[%emt 0:00:01]} 90. f6 {[%emt 0:00:00]} Kg5 {[%emt 0:00:00]} 91. f7 {[%emt 0:00:00]} Kf4 {[%emt 0:00:00]} 92. f8=Q+ {[%emt 0:00:01]} Ke4 {[%emt 0:00:00]} 93. Qf6 {[%emt 0:00:00]} Kd5 {[%emt 0:00:00]} 94. Qe6+ {[%emt 0:00:00]} Kd4 {[%emt 0:00:01]} 95. Qd6+ {[%emt 0:00:00]} Ke4 {[%emt 0:00:01]} 96. Ke6 {[%emt 0:00:00]} Ke3 {[%emt 0:00:00]} 97. Qe5+ {[%emt 0:00:00]} Kd3 {[%emt 0:00:01]} 98. Kf5 {[%emt 0:00:00]} Kc4 {[%emt 0:00:01]} 99. Qe4+ {[%emt 0:00:00]} Kc5 {[%emt 0:00:00]} 100. Kf4 {[%emt 0:00:00]} Kd6 {[%emt 0:00:02]} 101. Qe3 {[%emt 0:00:01]} Kd5 {[%emt 0:00:00]} 102. Qe5+ {[%emt 0:00:00]} Kc4 {[%emt 0:00:01]} 103. Kf5 {[%emt 0:00:00]} Kd3 {[%emt 0:00:01]} 104. Qe4+ {[%emt 0:00:00]} Kc3 {[%emt 0:00:00]} 105. Ke5 {[%emt 0:00:00]} Kd2 {[%emt 0:00:01]} 106. Kd5 {[%emt 0:00:00]} Kc3 {[%emt 0:00:01]} 107. Qf3+ {[%emt 0:00:00]} Kb4 {[%emt 0:00:01]} 108. Kd4 {[%emt 0:00:00]} Kb5 {[%emt 0:00:00]} 109. Qc3 {[%emt 0:00:01]} Kb6 {[%emt 0:00:01]} 110. Qc5+ {[%emt 0:00:00]} Ka6 {[%emt 0:00:01]} 111. Kd5 {[%emt 0:00:00]} Kb7 {[%emt 0:00:00]} 112. Qb4+ {[%emt 0:00:00]} Kc7 {[%emt 0:00:01]} 113. Qd6+ {[%emt 0:00:00]} Kb7 {[%emt 0:00:00]} 114. Qc6+ {[%emt 0:00:00]} Kb8 {[%emt 0:00:01]} 115. Kd6 {[%emt 0:00:00]} Ka7 {[%emt 0:00:01]} 116. Qb5 {[%emt 0:00:00]} Ka8 {[%emt 0:00:00]} 117. Kc7 {[%emt 0:00:01]} Ka7 {[%emt 0:00:00]} 118. Qb7# {[%emt 0:00:00]} 1-0

[Event "CCT Chessable Masters Play-In 2025"]
[Site "Online"]
[Date "2025.02.17"]
[Round "4.18"]
[White "Andreikin, Dmitry"]
[Black "Bharath Subramaniyam H"]
[Result "1/2-1/2"]
[ECO "E15"]
[WhiteElo "2695"]
[BlackElo "2567"]
[PlyCount "120"]
[EventDate "2025.02.13"]
[EventType "swiss"]
[EventCountry "NET"]
[TimeControl "600"]
[WhiteClock "0:02:03"]
[BlackClock "0:02:22"]

1. d4 {[%emt 0:00:11]} Nf6 {[%emt 0:00:02]} 2. c4 {[%emt 0:00:02]} e6 {[%emt 0:00:02]} 3. Nf3 {[%emt 0:00:04]} b6 {[%emt 0:00:02]} 4. g3 {[%emt 0:00:03]} Ba6 {[%emt 0:00:01]} 5. Nbd2 {[%emt 0:00:02]} Bb7 {[%emt 0:00:14]} 6. Bg2 {[%emt 0:00:01]} c5 {[%emt 0:00:01]} 7. O-O {[%emt 0:00:02]} cxd4 {[%emt 0:00:03]} 8. Nxd4 {[%emt 0:00:00]} Bxg2 {[%emt 0:00:00]} 9. Kxg2 {[%emt 0:00:00]} Qc8 {[%emt 0:00:01]} 10. b3 {[%emt 0:00:03]} Nc6 {[%emt 0:00:05]} 11. Bb2 {[%emt 0:00:03]} Be7 {[%emt 0:00:02]} 12. e4 {[%emt 0:00:24]} d6 {[%emt 0:00:10]} 13. Nxc6 {[%emt 0:00:19]} Qxc6 {[%emt 0:00:00]} 14. Qf3 {[%emt 0:00:01]} Rc8 {[%emt 0:00:08]} 15. Rfd1 {[%emt 0:00:16]} O-O {[%emt 0:00:05]} 16. e5 {[%emt 0:00:05]} dxe5 {[%emt 0:00:04]} 17. Bxe5 {[%emt 0:00:05]} Rfd8 {[%emt 0:00:07]} 18. Qxc6 {[%emt 0:00:08]} Rxc6 {[%emt 0:00:01]} 19. Nf3 {[%emt 0:00:22]} Rcc8 {[%emt 0:00:17]} 20. Bb2 {[%emt 0:00:04]} Kf8 {[%emt 0:00:23]} 21. Ne5 {[%emt 0:00:08]} Ke8 {[%emt 0:00:07]} 22. Kf3 {[%emt 0:00:18]} Bd6 {[%emt 0:00:23]} 23. a4 {[%emt 0:00:28]} Rc5 {[%emt 0:00:21]} 24. Nd3 {[%emt 0:00:12]} Rc7 {[%emt 0:00:11]} 25. a5 {[%emt 0:00:34]} bxa5 {[%emt 0:00:17]} 26. Rxa5 {[%emt 0:00:05]} Rb7 {[%emt 0:00:18]} 27. Nc1 {[%emt 0:00:26]} Bc7 {[%emt 0:00:02]} 28. Rxd8+ {[%emt 0:00:02]} Bxd8 {[%emt 0:00:00]} 29. Ra6 {[%emt 0:00:16]} Nd7 {[%emt 0:00:30]} 30. Bxg7 {[%emt 0:00:06]} Nc5 {[%emt 0:00:26]} 31. Ra3 {[%emt 0:00:02]} Bg5 {[%emt 0:00:01]} 32. Bb2 {[%emt 0:00:16]} Bxc1 {[%emt 0:00:21]} 33. Bxc1 {[%emt 0:00:00]} Rxb3+ {[%emt 0:00:07]} 34. Rxb3 {[%emt 0:00:15]} Nxb3 {[%emt 0:00:00]} 35. Be3 {[%emt 0:00:00]} a5 {[%emt 0:00:10]} 36. Ke2 {[%emt 0:00:48]} a4 {[%emt 0:00:07]} 37. Bd2 {[%emt 0:00:02]} a3 {[%emt 0:00:14]} 38. Bc3 {[%emt 0:00:01]} Kd7 {[%emt 0:01:01]} 39. Kd3 {[%emt 0:00:02]} a2 {[%emt 0:00:09]} 40. Kc2 {[%emt 0:00:06]} a1=Q {[%emt 0:00:17]} 41. Bxa1 {[%emt 0:00:01]} Nxa1+ {[%emt 0:00:00]} 42. Kb2 {[%emt 0:00:01]} Kc6 {[%emt 0:00:00]} 43. Kxa1 {[%emt 0:00:04]} Kc5 {[%emt 0:00:01]} 44. Kb2 {[%emt 0:00:07]} Kxc4 {[%emt 0:00:00]} 45. Kc2 {[%emt 0:00:02]} Kd4 {[%emt 0:00:04]} 46. Kd2 {[%emt 0:00:01]} e5 {[%emt 0:00:03]} 47. f3 {[%emt 0:00:11]} f5 {[%emt 0:00:10]} 48. Ke2 {[%emt 0:00:10]} e4 {[%emt 0:00:22]} 49. fxe4 {[%emt 0:00:35]} fxe4 {[%emt 0:00:00]} 50. g4 {[%emt 0:00:06]} e3 {[%emt 0:00:04]} 51. g5 {[%emt 0:00:07]} Ke4 {[%emt 0:00:00]} 52. h4 {[%emt 0:00:01]} Kf4 {[%emt 0:00:02]} 53. h5 {[%emt 0:00:07]} Kxg5 {[%emt 0:00:01]} 54. Kxe3 {[%emt 0:00:01]} Kxh5 {[%emt 0:00:00]} 55. Kf2 {[%emt 0:00:01]} Kg4 {[%emt 0:00:00]} 56. Kg2 {[%emt 0:00:00]} h5 {[%emt 0:00:00]} 57. Kh2 {[%emt 0:00:00]} h4 {[%emt 0:00:00]} 58. Kh1 {[%emt 0:00:00]} h3 {[%emt 0:00:00]} 59. Kg1 {[%emt 0:00:00]} Kg3 {[%emt 0:00:01]} 60. Kh1 {[%emt 0:00:00]} h2 {[%emt 0:00:00]} 1/2-1/2